bitfinex-derivatives/quotes_BNBF0:USTF0_20250302
["timestamp","ask_amount","ask_price","bid_price","bid_amount"]
[1740886640217,0.189,607.22,606.74,1.21792817]
[1740886643218,0.189,607.22,606.78,1.21792817]
[1740886643416,0.189,607.22,606.79,0.32960332]
[1740886645319,0.189,607.22,606.8,1.21792817]
[1740886646416,0.189,607.22,606.8,1.54752606]
[1740886647519,0.189,607.22,606.82,1.21792817]
[1740886649923,0.189,607.22,606.91,1.21792817]
[1740886650319,1.076,607.23,606.91,1.21792817]
[1740886651821,1.076,607.23,606.8,0.32959789]
[1740886653323,0.189,607.22,606.8,0.32959789]
[1740886660930,0.915,607.21,606.8,0.32959789]
[1740886661229,0.915,607.21,606.82,1.21792817]
[1740886661429,0.915,607.21,606.83,0.32958159]
[1740886663530,0.915,607.21,606.88,1.21792817]
[1740886665330,0.915,607.21,606.83,0.32958159]
[1740886668532,0.189,607.2,606.83,0.32958159]
[1740886671033,1.2508328,607.19,606.83,0.32958159]
[1740886671726,0.189,607.2,606.83,0.32958159]
[1740886673730,1.25044224,607.19,606.83,0.32958159]
[1740886674536,0.189,607.2,606.83,0.32958159]
[1740886713965,1.388,607.2,606.83,0.32958159]
[1740886714169,1.388,607.2,606.88,1.21792817]
[1740886714359,1.388,607.2,606.89,0.32954901]
[1740886806047,1.388,607.2,607.0,1.21792817]
[1740886806240,1.199,607.2,607.01,0.32948386]
[1740886806444,1.25107712,607.72,607.01,0.32948386]
[1740886807245,2.00182206,607.89,607.01,0.32948386]
[1740886807644,1.152,607.88,607.01,0.32948386]
[1740886807841,2.87085805,607.88,607.01,0.32948386]
[1740886808347,1.25134952,607.87,607.01,0.32948386]
[1740886809047,1.25134952,607.86,607.01,0.32948386]
[1740886809448,0.189,607.85,607.01,0.32948386]
[1740886810049,1.25134952,607.84,607.01,0.32948386]
[1740886810549,1.25134952,607.83,607.01,0.32948386]
[1740886810750,2.97040569,607.83,607.01,0.32948386]
[1740886812049,2.89733669,607.82,607.01,0.32948386]
[1740886812246,1.64598717,607.81,607.01,0.32948386]
[1740886812451,1.64598717,607.8,607.01,0.32948386]
[1740886812647,1.64598717,607.79,607.01,0.32948386]
[1740886812854,1.64598717,607.78,607.01,0.32948386]
[1740886813054,1.64598717,607.77,607.01,0.32948386]
[1740886813248,1.64598717,607.76,607.01,0.32948386]
[1740886813453,3.25433452,607.81,607.01,0.32948386]
[1740886813753,1.71921894,607.75,607.01,0.32948386]
[1740886814351,3.25433452,607.74,607.01,0.32948386]
[1740886815349,3.25433452,607.73,607.01,0.32948386]
[1740886816056,3.24676226,607.72,607.01,0.32948386]
[1740886816754,1.25134952,607.71,607.01,0.32948386]
[1740886817350,1.71921894,607.75,607.01,0.32948386]
[1740886817351,1.25134952,607.7,607.01,0.32948386]
[1740886818157,1.25134952,607.69,607.01,0.32948386]
[1740886818657,1.25134952,607.68,607.01,0.32948386]
[1740886819051,1.25134952,607.67,607.01,0.32948386]
[1740886819659,1.25134952,607.66,607.01,0.32948386]
[1740886819853,2.97074543,607.66,607.01,0.32948386]
[1740886820359,1.25134952,607.65,607.01,0.32948386]
[1740886820858,1.25134952,607.64,607.01,0.32948386]
[1740886821552,1.71939591,607.66,607.01,0.32948386]
[1740886821553,1.25134952,607.63,607.01,0.32948386]
[1740886822159,1.25134952,607.62,607.01,0.32948386]
[1740886822659,1.25134952,607.61,607.01,0.32948386]
[1740886823159,1.25134952,607.6,607.01,0.32948386]
[1740886823760,0.952,607.59,607.01,0.32948386]
[1740886823960,2.20334952,607.59,607.01,0.32948386]
[1740886824761,1.25134952,607.58,607.01,0.32948386]
[1740886825564,0.952,607.59,607.01,0.32948386]
[1740886825565,1.25134952,607.57,607.01,0.32948386]
[1740886826061,1.25134952,607.56,607.01,0.32948386]
[1740886827160,0.952,607.59,607.01,0.32948386]
[1740886827863,1.25236604,607.58,607.01,0.32948386]
[1740886828461,1.25236604,607.57,607.01,0.32948386]
[1740886829164,0.952,607.59,607.01,0.32948386]
[1740886829864,1.25246237,607.58,607.01,0.32948386]
[1740886830565,1.25246237,607.57,607.01,0.32948386]
[1740886831266,0.952,607.59,607.01,0.32948386]
[1740886832061,1.25255767,607.58,607.01,0.32948386]
[1740886832660,1.44155767,607.58,607.01,0.32948386]
[1740886833160,0.189,607.58,607.01,0.32948386]
[1740886844278,1.25292683,607.57,607.01,0.32948386]
[1740886844677,1.25292683,607.56,607.01,0.32948386]
[1740886845277,0.189,607.58,607.01,0.32948386]
[1740886846573,0.189,607.58,607.06,1.21792817]
[1740886846775,0.189,607.58,607.06,1.54738489]
[1740886848181,0.189,607.58,607.06,0.32945672]
[1740886858282,1.25338054,607.57,607.06,0.32945672]
[1740886858986,0.952,607.59,607.06,0.32945672]
[1740886859586,1.25337068,607.58,607.06,0.32945672]
[1740886860585,1.25337068,607.57,607.06,0.32945672]
[1740886860979,0.952,607.59,607.06,0.32945672]
[1740886861781,1.44235191,607.58,607.06,0.32945672]
[1740886862393,1.25335191,607.57,607.06,0.32945672]
[1740886863191,1.25335191,607.56,607.06,0.32945672]
[1740886864286,0.189,607.58,607.06,0.32945672]
[1740886864991,1.25331111,607.57,607.06,0.32945672]
[1740886866092,1.25331111,607.56,607.06,0.32945672]
[1740886866788,1.25331111,607.55,607.06,0.32945672]
[1740886867495,1.25331111,607.54,607.06,0.32945672]
[1740886868492,0.189,607.58,607.06,0.32945672]
[1740886868992,1.25367829,607.57,607.06,0.32945672]
[1740886869890,1.25367829,607.56,607.06,0.32945672]
[1740886870497,0.189,607.58,607.06,0.32945672]
[1740886871197,1.25405507,607.57,607.06,0.32945672]
[1740886872096,1.25405507,607.56,607.06,0.32945672]
[1740886872491,0.189,607.58,607.06,0.32945672]
[1740886873093,1.25414288,607.57,607.06,0.32945672]
[1740886873994,0.189,607.58,607.06,0.32945672]
[1740886873995,1.25414288,607.56,607.06,0.32945672]
[1740886874492,0.189,607.58,607.06,0.32945672]
[1740886875300,1.25411459,607.57,607.06,0.32945672]
[1740886875898,2.34311459,607.57,607.06,0.32945672]
[1740886876293,1.089,607.57,607.06,0.32945672]
[1740886877701,1.089,607.57,607.12,1.21792817]
[1740886879699,1.089,607.57,607.14,1.21792817]
[1740886881802,1.278,607.57,607.14,1.21792817]
[1740886882203,1.278,607.57,607.09,1.21792817]
[1740886882407,1.278,607.57,607.09,1.54736861]
[1740886884509,1.278,607.57,607.09,0.32944044]
[1740886885915,1.278,607.57,607.14,1.21792817]
[1740886887117,1.278,607.57,607.09,0.32944044]
[1740886890620,1.278,607.57,607.1,1.21792817]
[1740886892824,1.278,607.57,607.09,1.54736861]
[1740886894625,1.278,607.57,607.09,0.32944044]
[1740886896520,1.25385218,607.56,607.09,0.32944044]
[1740886897417,1.25385218,607.55,607.09,0.32944044]
[1740886897927,1.375,607.54,607.09,0.32944044]
[1740886898227,2.62885218,607.54,607.09,0.32944044]
[1740886898728,1.375,607.54,607.09,0.32944044]
[1740886899826,1.25386426,607.53,607.09,0.32944044]
[1740886900518,1.375,607.54,607.09,0.32944044]
[1740886903626,1.25391027,607.53,607.09,0.32944044]
[1740886904222,0.189,607.52,607.09,0.32944044]
[1740886929341,0.189,607.52,607.17,1.21792817]
[1740886931145,1.375,607.54,607.17,1.21792817]
[1740886934047,1.375,607.54,607.09,1.54736861]
[1740886934248,0.189,607.53,607.09,1.54736861]
[1740886936143,0.189,607.53,607.09,0.32944044]
[1740886938350,0.189,607.53,607.12,1.21792817]
[1740886939153,0.189,607.53,607.13,0.32941874]
[1740886941054,1.148,607.52,607.13,0.32941874]
[1740886959568,0.189,607.51,607.13,0.32941874]
[1740886966974,1.25339168,607.5,607.13,0.32941874]
[1740886967271,1.25340379,607.49,607.13,0.32941874]
[1740886968675,0.189,607.51,607.13,0.32941874]
[1740886968676,1.25340379,607.48,607.13,0.32941874]
[1740886969776,1.25340379,607.47,607.13,0.32941874]
[1740886970569,1.9086508,607.51,607.13,0.32941874]
[1740886971475,1.2522098,607.5,607.13,0.32941874]
[1740886972075,1.9086508,607.51,607.13,0.32941874]
[1740886972076,1.2522098,607.49,607.13,0.32941874]
[1740886972871,1.2522098,607.48,607.13,0.32941874]
[1740886973477,1.90867204,607.51,607.13,0.32941874]
[1740886974377,1.25160679,607.5,607.13,0.32941874]
[1740886974574,1.25160679,607.5,606.69,1.21792817]
[1740886974780,1.25160679,607.5,606.7,0.32965221]
[1740886975178,3.25424447,607.49,606.7,0.32965221]
[1740886975980,3.25424447,607.48,606.7,0.32965221]
[1740886976878,1.25160679,607.47,606.7,0.32965221]
[1740886977680,1.25160679,607.46,606.7,0.32965221]
[1740886978685,1.25160679,607.45,606.7,0.32965221]
[1740886979187,1.25160679,607.44,606.7,0.32965221]
[1740886979584,1.007,607.45,606.7,0.32965221]
[1740886981780,1.7198916,607.44,606.7,0.32965221]
[1740886984291,1.007,607.45,606.7,0.32965221]
[1740886985993,1.007,607.45,606.73,1.21792817]
[1740886986187,1.007,607.45,606.74,0.32963048]
[1740886987796,1.196,607.45,606.74,0.32963048]
[1740886996800,1.72001911,607.44,606.74,0.32963048]
[1740886999403,1.196,607.45,606.74,0.32963048]
[1740886999800,1.71989868,607.43,606.74,0.32963048]
[1740887002500,1.196,607.45,606.74,0.32963048]
[1740887002699,1.72011121,607.42,606.74,0.32963048]
[1740887005606,1.196,607.45,606.74,0.32963048]
[1740887005901,1.72010413,607.41,606.74,0.32963048]
[1740887008608,0.189,607.45,606.74,0.32963048]
[1740887008808,1.72017498,607.4,606.74,0.32963048]
[1740887009510,1.081,607.39,606.74,0.32963048]
[1740887018016,0.189,607.38,606.74,0.32963048]
[1740887021817,0.189,607.38,606.75,1.21792817]
[1740887022018,0.189,607.38,606.76,0.32961961]
[1740887026622,0.189,607.38,606.9,1.21792817]
[1740887028925,0.189,607.38,606.89,1.21792817]
[1740887031132,0.189,607.38,606.9,0.32954358]
[1740887035128,1.081,607.39,606.9,0.32954358]
[1740887038231,0.189,607.38,606.9,0.32954358]
[1740887051840,1.082,607.37,606.9,0.32954358]
[1740887054040,1.082,607.37,606.9,1.54747175]
[1740887056441,1.082,607.37,606.92,1.21792817]
[1740887057235,0.189,607.36,606.92,1.21792817]
[1740887058740,0.189,607.36,606.9,0.32954358]
[1740887058741,0.189,607.36,606.94,1.21792817]
[1740887060848,0.189,607.36,606.9,0.32954358]
[1740887063951,1.113,607.35,606.9,0.32954358]
[1740887071563,0.189,607.34,606.9,0.32954358]
[1740887077967,0.189,607.34,606.97,1.21792817]
[1740887084076,0.189,607.34,606.97,1.54743374]
[1740887084473,0.189,607.34,606.98,1.21792817]
[1740887087176,0.189,607.34,606.97,0.32950557]
[1740887097584,1.113,607.35,606.97,0.32950557]
[1740887097982,1.25272819,607.57,606.97,0.32950557]
[1740887098183,1.71955875,607.59,606.97,1.54743374]
[1740887098584,5.73068535,607.76,606.97,1.54743374]
[1740887098780,1.71930388,607.63,606.97,1.54743374]
[1740887098985,1.64630318,607.74,606.97,1.54743374]
[1740887099185,0.938,607.62,606.97,1.54743374]
[1740887099486,4.19412519,607.62,606.97,1.54743374]
[1740887100386,3.25612519,607.61,606.97,1.54743374]
[1740887100786,0.189,607.6,606.99,1.21792817]
[1740887100987,3.25612519,607.59,606.99,1.21792817]
[1740887101781,3.25612519,607.58,606.99,1.21792817]
[1740887101981,1.25235584,607.57,606.99,1.21792817]
[1740887103084,1.25235584,607.56,606.97,0.32950557]
[1740887103687,1.25235584,607.55,606.97,0.32950557]
[1740887104287,1.25235584,607.54,606.97,0.32950557]
[1740887104688,1.25235584,607.53,606.97,0.32950557]
[1740887105690,1.71936051,607.59,606.97,0.32950557]
[1740887106788,1.25227221,607.58,606.97,0.32950557]
[1740887107590,1.25227221,607.57,606.97,0.32950557]
[1740887107788,1.25227221,607.57,607.02,1.21792817]
[1740887108494,1.25227221,607.56,607.02,1.21792817]
[1740887109191,1.25227221,607.55,607.02,1.21792817]
[1740887110100,1.25227221,607.55,607.05,1.21792817]
[1740887110300,0.189,607.6,607.05,1.21792817]
[1740887111000,1.25233852,607.59,607.05,1.21792817]
[1740887111594,1.25233852,607.58,607.05,1.21792817]
[1740887112197,1.25233852,607.57,607.05,1.21792817]
[1740887112901,1.25233852,607.57,607.06,1.21792817]
[1740887113101,1.25233852,607.56,607.06,1.21792817]
[1740887113703,3.25628458,607.55,607.06,1.21792817]
[1740887114199,1.25233852,607.54,607.06,1.21792817]
[1740887114908,1.25233852,607.53,607.06,1.21792817]
[1740887115604,1.25233852,607.52,607.06,1.21792817]
[1740887116297,1.25233852,607.51,607.06,1.21792817]
[1740887116703,1.25233852,607.5,607.06,1.21792817]
[1740887117404,1.25233852,607.49,607.06,1.21792817]
[1740887117707,1.25233852,607.49,607.05,1.21792817]
[1740887118703,0.189,607.6,607.05,1.21792817]
[1740887119107,3.25681084,607.59,607.05,1.21792817]
[1740887119407,4.30981084,607.59,607.05,1.21792817]
[1740887119607,3.25681084,607.58,607.05,1.21792817]
[1740887120512,3.25681084,607.57,607.05,1.21792817]
[1740887121203,3.25681084,607.56,607.07,1.21792817]
[1740887122110,1.25261955,607.55,607.07,1.21792817]
[1740887122802,1.25261955,607.54,607.07,1.21792817]
[1740887125011,1.25261955,607.53,607.07,1.21792817]
[1740887125714,1.25261955,607.52,607.07,1.21792817]
[1740887126614,1.25261955,607.51,607.11,1.21792817]
[1740887127208,1.053,607.59,607.11,1.21792817]
[1740887128108,1.25279291,607.58,607.11,1.21792817]
[1740887129108,1.053,607.59,607.11,1.21792817]
[1740887130914,1.053,607.59,606.97,0.32950557]
[1740887131109,1.25282184,607.58,606.97,0.32950557]
[1740887132014,1.25282184,607.57,606.97,0.32950557]
[1740887132609,1.25282184,607.56,606.97,0.32950557]
[1740887133315,0.189,607.58,606.97,0.32950557]
[1740887134116,1.25277708,607.57,606.97,0.32950557]
[1740887135219,0.189,607.58,606.97,0.32950557]
[1740887139821,0.189,607.58,606.97,1.54743374]
[1740887142221,0.189,607.58,606.97,0.32950557]
[1740887146330,0.189,607.58,607.01,1.21792817]
[1740887146530,0.189,607.58,607.02,0.32947843]
[1740887149230,0.189,607.58,607.09,1.21792817]
[1740887149428,0.189,607.58,607.1,0.32943501]
[1740887151533,0.189,607.58,607.1,1.54736318]
[1740887154332,0.189,607.58,607.1,0.32943501]
[1740887159545,0.189,607.58,607.1,1.54736318]
[1740887160944,0.189,607.58,607.12,1.21792817]
[1740887161242,0.189,607.58,607.13,0.32941874]
[1740887163140,0.189,607.58,607.18,1.21792817]
[1740887167140,0.189,607.58,607.21,1.21792817]
[1740887169247,0.189,607.58,607.15,1.21792817]
[1740887171044,0.189,607.58,607.16,0.32940246]
[1740887171550,0.189,607.58,607.17,1.21792817]
[1740887171743,0.189,607.58,607.18,0.32939161]
[1740887176657,1.16,607.58,607.18,0.32939161]
[1740887191161,1.16,607.58,607.23,1.21792817]
[1740887191358,1.16,607.58,607.24,0.32935906]
[1740887204160,1.16,607.58,607.26,1.21792817]
[1740887204365,1.16,607.58,607.27,0.32934279]
[1740887268699,0.82460979,607.58,607.27,0.32934279]
[1740887269002,1.71801655,608.52,607.27,0.32934279]
[1740887269604,5.71174336,608.89,607.27,0.32934279]
[1740887269800,1.71746542,608.51,607.27,0.32934279]
[1740887270004,1.64399399,608.82,607.27,0.32934279]
[1740887270300,1.71750074,608.5,607.27,0.32934279]
[1740887270506,4.27448716,608.82,607.27,0.32934279]
[1740887270706,1.64399399,608.81,607.27,0.32934279]
[1740887270907,1.64399399,608.82,607.27,0.32934279]
[1740887271205,1.64252931,608.83,607.27,0.32934279]
[1740887271405,4.86911129,608.81,607.27,0.32934279]
[1740887271601,1.64399399,608.8,607.27,0.32934279]
[1740887272307,3.22658198,608.79,607.27,0.32934279]
[1740887272504,1.64399399,608.78,607.27,0.32934279]
[1740887272705,4.87057597,608.78,607.27,0.32934279]
[1740887273003,4.94371549,608.78,607.27,0.32934279]
[1740887273210,1.64406927,608.77,607.27,0.32934279]
[1740887273604,4.94371549,608.78,607.27,0.32934279]
[1740887273802,3.22658198,608.76,607.27,0.32934279]
[1740887274708,1.24099307,608.75,607.27,0.32934279]
[1740887275105,1.24099307,608.74,607.27,0.32934279]
[1740887275810,1.71706996,608.73,607.27,0.32934279]
[1740887276009,2.95806303,608.73,607.27,0.32934279]
[1740887277107,1.24099307,608.72,607.27,0.32934279]
[1740887277513,1.24099307,608.71,607.27,0.32934279]
[1740887278007,1.24099307,608.7,607.27,0.32934279]
[1740887278610,1.406,608.79,607.27,0.32934279]
[1740887278611,1.24099307,608.69,607.27,0.32934279]
[1740887279113,2.95821131,608.69,607.27,0.32934279]
[1740887279415,5.52864412,608.68,607.27,0.32934279]
[1740887279613,1.64406422,608.67,607.27,0.32934279]
[1740887280214,3.8845799,608.66,607.27,0.32934279]
[1740887280708,3.8845799,608.66,607.28,1.21792817]
[1740887280915,3.8845799,608.65,607.3,0.32932652]
[1740887281515,3.8845799,608.64,607.3,0.32932652]
[1740887281911,5.60178402,608.64,607.3,0.32932652]
[1740887282109,3.22658198,608.63,607.3,0.32932652]
[1740887282609,3.22658198,608.62,607.3,0.32932652]
[1740887283414,3.22658198,608.61,607.3,0.32932652]
[1740887284016,1.64431644,608.6,607.3,0.32932652]
[1740887284216,4.87089842,608.6,607.3,0.32932652]
[1740887284418,1.64431644,608.59,607.3,0.32932652]
[1740887284815,3.8845799,608.58,607.3,0.32932652]
[1740887285016,1.64431644,608.57,607.3,0.32932652]
[1740887285217,3.8845799,608.56,607.3,0.32932652]
[1740887285413,1.64431644,608.55,607.3,0.32932652]
[1740887285720,3.8845799,608.56,607.3,0.32932652]
[1740887285920,3.8845799,608.55,607.3,0.32932652]
[1740887287018,3.22658198,608.54,607.3,0.32932652]
[1740887287621,3.22658198,608.53,607.3,0.32932652]
[1740887288117,4.94418868,608.53,607.3,0.32932652]
[1740887288322,3.22658198,608.52,607.3,0.32932652]
[1740887289114,1.24099307,608.51,607.3,0.32932652]
[1740887290616,1.24099307,608.5,607.3,0.32932652]
[1740887290820,2.95850794,608.5,607.3,0.32932652]
[1740887291326,1.24099307,608.49,607.3,0.32932652]
[1740887291817,1.24099307,608.48,607.3,0.32932652]
[1740887292724,1.24099307,608.47,607.3,0.32932652]
[1740887292925,1.24099307,608.47,607.48,1.21792817]
[1740887293123,1.24099307,608.47,607.5,0.3292181]
[1740887293419,1.24099307,608.49,607.5,0.3292181]
[1740887294122,3.22658198,608.48,607.5,0.3292181]
[1740887295024,3.22658198,608.47,607.62,1.21792817]
[1740887295325,3.22658198,608.47,607.63,0.32914767]
[1740887295720,3.22658198,608.46,607.63,0.32914767]
[1740887296120,3.22658198,608.45,607.63,0.32914767]
[1740887296821,2.9581407,608.44,607.63,0.32914767]
[1740887298326,1.71714763,608.44,607.63,0.32914767]
[1740887298928,1.24140235,608.55,607.63,0.32914767]
[1740887299132,1.71705584,608.46,607.63,0.32914767]
[1740887299433,1.98558891,608.66,607.63,0.32914767]
[1740887299634,1.71706996,608.45,607.65,1.21792817]
[1740887299827,1.98558891,608.66,607.66,0.32913142]
[1740887300330,2.64358683,608.65,607.66,0.32913142]
[1740887300729,4.36045207,608.65,607.66,0.32913142]
[1740887301131,3.22744099,608.64,607.66,0.32913142]
[1740887301735,3.22744099,608.63,607.66,0.32913142]
[1740887302636,3.22744099,608.62,607.66,0.32913142]
[1740887303336,3.22744099,608.61,607.66,0.32913142]
[1740887303933,3.22744099,608.6,607.66,0.32913142]
[1740887304839,3.22744099,608.59,607.66,0.32913142]
[1740887305435,1.64440492,608.58,607.66,0.32913142]
[1740887305838,4.94458862,608.57,607.66,0.32913142]
[1740887306332,3.22744099,608.56,607.66,0.32913142]
[1740887307136,3.22744099,608.55,607.66,0.32913142]
[1740887308147,3.22744099,608.54,607.66,0.32913142]
[1740887308941,3.22744099,608.53,607.66,0.32913142]
[1740887309144,4.94460274,608.53,607.66,0.32913142]
[1740887311348,3.22744099,608.52,607.66,0.32913142]
[1740887312141,3.22744099,608.51,607.66,0.32913142]
[1740887312543,3.88543891,608.5,607.66,0.32913142]
[1740887313248,3.88543891,608.49,607.66,0.32913142]
[1740887313950,3.88543891,608.48,607.66,0.32913142]
[1740887314549,1.22,608.47,607.66,0.32913142]
[1740887314844,5.10543891,608.47,607.66,0.32913142]
[1740887315050,1.7170982,608.46,607.66,0.32913142]
[1740887315745,3.88543891,608.45,607.66,0.32913142]
[1740887316550,3.88543891,608.44,607.66,0.32913142]
[1740887317150,3.22744099,608.43,607.66,0.32913142]
[1740887317747,3.22744099,608.42,607.66,0.32913142]
[1740887318551,3.88512502,608.41,607.66,0.32913142]
[1740887319454,3.88512502,608.4,607.66,0.32913142]
[1740887320255,3.22744099,608.39,607.66,0.32913142]
[1740887320855,3.22744099,608.38,607.66,0.32913142]
[1740887321853,1.71708408,608.44,607.66,1.54705959]
[1740887321854,3.22744099,608.37,607.66,1.54705959]
[1740887322852,3.22744099,608.36,607.66,1.54705959]
[1740887323654,1.24185208,608.35,607.66,1.54705959]
[1740887323854,1.24185208,608.35,607.76,1.21792817]
[1740887324049,1.24185208,608.35,607.77,0.32907185]
[1740887324252,1.24185208,608.34,607.77,0.32907185]
[1740887325049,1.24185208,608.33,607.77,0.32907185]
[1740887325659,1.24185208,608.32,607.77,0.32907185]
[1740887326149,1.24185208,608.31,607.77,0.32907185]
[1740887326752,1.24185208,608.3,607.77,0.32907185]
[1740887327652,1.24185208,608.29,607.77,0.32907185]
[1740887328061,1.71716175,608.37,607.77,0.32907185]
[1740887328660,3.25294992,608.36,607.77,0.32907185]
[1740887329758,3.25294992,608.35,607.77,0.32907185]
[1740887330556,3.25294992,608.34,607.77,0.32907185]
[1740887331462,1.25113458,608.33,607.77,0.32907185]
[1740887331960,3.25321246,608.32,607.77,0.32907185]
[1740887333068,3.25321246,608.31,607.77,0.32907185]
[1740887334070,1.25113458,608.3,607.77,0.32907185]
[1740887334463,1.25113458,608.29,607.77,0.32907185]
[1740887335364,1.71708408,608.43,607.77,0.32907185]
[1740887335365,1.25113458,608.28,607.77,0.32907185]
[1740887336170,1.7170982,608.43,607.77,0.32907185]
[1740887336171,1.25113458,608.27,607.77,0.32907185]
[1740887336567,0.6576482,608.42,607.77,0.32907185]
[1740887337174,3.91130425,608.41,607.77,0.32907185]
[1740887337973,3.91130425,608.4,607.77,0.32907185]
[1740887339070,1.7170276,608.43,607.77,0.32907185]
[1740887339071,3.25365605,608.39,607.77,0.32907185]
[1740887339774,3.25365605,608.38,607.77,0.32907185]
[1740887340276,3.25365605,608.37,607.77,0.32907185]
[1740887340776,3.25365605,608.36,607.77,0.32907185]
[1740887341678,1.25140617,608.35,607.77,0.32907185]
[1740887342275,1.25140617,608.34,607.77,0.32907185]
[1740887342876,1.25140617,608.33,607.77,0.32907185]
[1740887343573,1.25140617,608.32,607.77,0.32907185]
[1740887344474,1.25140617,608.32,607.77,1.54700002]
[1740887344678,1.22,608.47,607.77,1.54700002]
[1740887345776,3.91135078,608.46,607.77,1.54700002]
[1740887346480,1.71680172,608.54,607.84,1.21792817]
[1740887346481,3.91135078,608.45,607.84,1.21792817]
[1740887346879,5.14035078,608.45,607.84,1.21792817]
[1740887347179,3.2537168,608.44,607.84,1.21792817]
[1740887347675,1.25142954,608.44,607.84,1.21792817]
[1740887347878,1.25142954,608.43,607.84,1.21792817]
[1740887348077,1.25142954,608.43,607.85,0.32902854]
[1740887348479,1.25142954,608.43,607.85,1.54695671]
[1740887348681,1.25142954,608.42,607.85,1.54695671]
[1740887349280,1.25142954,608.41,607.85,1.54695671]
[1740887349781,1.25142954,608.4,607.85,1.54695671]
[1740887350282,1.229,608.45,607.85,1.54695671]
[1740887351383,1.25073308,608.44,607.85,1.54695671]
[1740887351780,1.25073308,608.43,607.85,1.54695671]
[1740887352180,1.25073308,608.42,607.85,1.54695671]
[1740887352883,1.229,608.45,607.85,1.54695671]
[1740887353179,1.2505031,608.44,607.85,1.54695671]
[1740887353384,1.2505031,608.44,607.85,0.32902854]
[1740887353985,1.229,608.45,607.85,0.32902854]
[1740887382094,1.24781295,608.44,607.85,0.32902854]
[1740887382497,1.24781295,608.43,607.85,0.32902854]
[1740887383297,1.24781295,608.42,607.85,0.32902854]
[1740887383997,1.71702054,608.41,607.85,0.32902854]
[1740887384599,1.24781295,608.4,607.85,0.32902854]
[1740887385500,1.24781295,608.39,607.85,0.32902854]
[1740887386713,1.24781295,608.38,607.85,0.32902854]
[1740887387004,2.96495352,608.38,607.85,0.32902854]
[1740887387209,1.24781295,608.37,607.85,0.32902854]
[1740887387710,1.24781295,608.36,607.85,0.32902854]
[1740887388612,1.24781295,608.35,607.85,0.32902854]
[1740887389008,1.135,608.34,607.85,0.32902854]
[1740887389209,2.38281295,608.34,607.85,0.32902854]
[1740887389809,1.24781295,608.33,607.85,0.32902854]
[1740887390809,1.135,608.34,607.85,0.32902854]
[1740887395921,2.85252193,608.34,607.85,0.32902854]
[1740887398322,1.24709631,608.33,607.85,0.32902854]
[1740887398724,2.85252193,608.34,607.85,0.32902854]
[1740887398929,1.24691721,608.32,607.85,0.32902854]
[1740887399925,1.24691721,608.31,607.85,0.32902854]
[1740887400833,1.24691721,608.3,607.85,0.32902854]
[1740887401534,2.85252193,608.34,607.85,0.32902854]
[1740887401535,3.24168932,608.29,607.85,0.32902854]
[1740887401933,4.95937374,608.29,607.85,0.32902854]
[1740887402638,3.24168932,608.28,607.85,0.32902854]
[1740887403336,1.24691721,608.27,607.85,0.32902854]
[1740887403738,1.24691721,608.26,607.85,0.32902854]
[1740887404640,1.24691721,608.25,607.85,0.32902854]
[1740887404842,2.96459456,608.25,607.85,0.32902854]
[1740887405643,1.24691721,608.24,607.85,0.32902854]
[1740887406339,1.24691721,608.23,607.85,0.32902854]
[1740887406943,1.71767735,608.25,607.85,0.32902854]
[1740887407739,1.24488443,608.24,607.85,0.32902854]
[1740887408344,1.71767735,608.25,607.85,0.32902854]
[1740887409447,1.71767735,608.25,607.29,1.21792817]
[1740887409643,1.24475426,608.24,607.31,0.3293211]
[1740887410644,3.23819765,608.23,607.31,0.3293211]
[1740887411247,1.021,608.22,607.31,0.3293211]
[1740887411848,1.24475426,608.21,607.31,0.3293211]
[1740887412455,1.24475426,608.2,607.31,0.3293211]
[1740887412951,1.24475426,608.19,607.31,0.3293211]
[1740887413445,1.24475426,608.18,607.31,0.3293211]
[1740887414044,1.71800241,608.17,607.31,0.3293211]
[1740887414246,2.96275667,608.17,607.31,0.3293211]
[1740887414948,1.71800241,608.17,607.31,0.3293211]
[1740887419750,1.24475426,608.18,607.31,0.3293211]
[1740887419952,1.71812257,608.16,607.31,0.3293211]
[1740887420145,2.96287683,608.16,607.31,0.3293211]
[1740887421058,1.24475426,608.15,607.31,0.3293211]
[1740887421750,1.71812257,608.16,607.31,0.3293211]
[1740887422748,1.24475426,608.21,607.31,0.3293211]
[1740887422949,1.7180943,608.15,607.33,1.21792817]
[1740887423146,1.7180943,608.15,607.34,0.32930483]
[1740887425655,1.021,608.22,607.34,0.32930483]
[1740887425955,1.71788933,608.14,607.34,0.32930483]
[1740887426253,1.021,608.22,607.34,0.32930483]
[1740887426552,1.7178964,608.13,607.34,0.32930483]
[1740887426751,1.021,608.22,607.34,0.32930483]
[1740887426950,1.71790347,608.13,607.34,0.32930483]